{"text_format":"3","workbook":"xlsx","n_sheets":6,"sheets":["销售致电日志","客户联系人信息","致电前","首次致电","销售信息","跟进"],"not_rendered":{"defined_names":13},"read":"whole","date_system":"1900"}

{"sheet":"销售致电日志","index":0,"n_rows":13,"n_cols":7,"rows_kept":13}
[null," 公司名称"]
[null,"销售致电日志"]
[null,"致电编号","客户","公司","日期","时间","备注"]
[null,1,"秦杰",{"$f":"IF(销售致电日志[[#This Row],[客户]]=\"\",\"\",IFERROR(VLOOKUP(销售致电日志[[#This Row],[客户]],客户联系人信息[],2,0),\"Not Found\"))","v":"Proseware, Inc."},{"$f":"TODAY()-5","v":"2017-10-08"},"08:30:00"]
[null,2,"袁洛",{"$f":"IF(销售致电日志[[#This Row],[客户]]=\"\",\"\",IFERROR(VLOOKUP(销售致电日志[[#This Row],[客户]],客户联系人信息[],2,0),\"Not Found\"))","v":"Litware, Inc."},{"$f":"TODAY()-5","v":"2017-10-08"},"09:00:00"]
[null,3,"钱霞",{"$f":"IF(销售致电日志[[#This Row],[客户]]=\"\",\"\",IFERROR(VLOOKUP(销售致电日志[[#This Row],[客户]],客户联系人信息[],2,0),\"Not Found\"))","v":"Northwind Traders"},"2017-10-08","09:30:00"]
[null,4,"卢宁",{"$f":"IF(销售致电日志[[#This Row],[客户]]=\"\",\"\",IFERROR(VLOOKUP(销售致电日志[[#This Row],[客户]],客户联系人信息[],2,0),\"Not Found\"))","v":"Lucerne Publishing"},"2017-10-08","10:00:00"]
[null,5,"彭德威",{"$f":"IF(销售致电日志[[#This Row],[客户]]=\"\",\"\",IFERROR(VLOOKUP(销售致电日志[[#This Row],[客户]],客户联系人信息[],2,0),\"Not Found\"))","v":"Margie's Travel"},"2017-10-08","10:30:00"]
[null,6,"秦杰",{"$f":"IF(销售致电日志[[#This Row],[客户]]=\"\",\"\",IFERROR(VLOOKUP(销售致电日志[[#This Row],[客户]],客户联系人信息[],2,0),\"Not Found\"))","v":"Proseware, Inc."},{"$f":"TODAY()-3","v":"2017-10-10"},"11:00:00"]
[null,7,"袁洛",{"$f":"IF(销售致电日志[[#This Row],[客户]]=\"\",\"\",IFERROR(VLOOKUP(销售致电日志[[#This Row],[客户]],客户联系人信息[],2,0),\"Not Found\"))","v":"Litware, Inc."},{"$f":"TODAY()-3","v":"2017-10-10"},"11:30:00"]
[null,8,"秦杰",{"$f":"IF(销售致电日志[[#This Row],[客户]]=\"\",\"\",IFERROR(VLOOKUP(销售致电日志[[#This Row],[客户]],客户联系人信息[],2,0),\"Not Found\"))","v":"Proseware, Inc."},{"$f":"TODAY()-1","v":"2017-10-12"},"12:00:00"]
[null,9,"彭德威",{"$f":"IF(销售致电日志[[#This Row],[客户]]=\"\",\"\",IFERROR(VLOOKUP(销售致电日志[[#This Row],[客户]],客户联系人信息[],2,0),\"Not Found\"))","v":"Margie's Travel"},{"$f":"TODAY()-1","v":"2017-10-12"},"12:30:00"]
[null,10,"彭德威",{"$f":"IF(销售致电日志[[#This Row],[客户]]=\"\",\"\",IFERROR(VLOOKUP(销售致电日志[[#This Row],[客户]],客户联系人信息[],2,0),\"Not Found\"))","v":"Margie's Travel"},{"$f":"TODAY()","v":"2017-10-13"},"13:00:00"]

{"sheet":"客户联系人信息","index":1,"n_rows":8,"n_cols":8,"rows_kept":8}
[null,{"$f":"公司名称","v":" 公司名称"}]
[null,"客户联系信息​​"]
[null,"客户姓名","公司名称","地址","州/省/自治区、城市及邮政编码","主要电话","备用电话","电子邮件"]
[null,"袁洛","Litware, Inc.","100 Main St","Cherrytown, NH 123456","(541) 555-0135","(541) 555-0136","radim@litwareinc.com"]
[null,"卢宁","Lucerne Publishing","567 Second Ave","Spaulding, NY 23456","(425) 555-0198","(425) 555-0199","ning@lucernepublishing.com"]
[null,"彭德威","Margie's Travel","987 Orange St","Mountain View, IL 34567","(888) 555-0125","(888) 555-0126","dewei@margiestravel.com"]
[null,"钱霞","Northwind Traders","890 N 3rd Ave","Chatham, CA 45678","(541) 555-0175","(541) 555-0176","xia@northwindtraders.com"]
[null,"秦杰","Proseware, Inc.","123 Major Dr","Shelbyville, MA 56789","(509) 555-0150","(509) 555-0151","jie@proseware.com"]

{"sheet":"致电前","index":2,"n_rows":13,"n_cols":3,"rows_kept":13}
[null,{"$f":"公司名称","v":" 公司名称"}]
[null,"销售致电清单"]
[null,"复选框","致电前"]
[null,null,"回顾客户发展经历"]
[null,null,"回顾客户工作经历"]
[null,null,"复核优先级和销售策略"]
[null,null,"添加项目"]
[null,null,"添加项目"]
[null,null,"添加项目"]
[null,null,"添加项目"]
[null,null,"添加项目"]
[null,null,"添加项目"]
[null,null,"添加项目"]

{"sheet":"首次致电","index":3,"n_rows":13,"n_cols":3,"rows_kept":13}
[null,{"$f":"公司名称","v":" 公司名称"}]
[null,"销售致电清单"]
[null,"复选框","首次致电"]
[null,null,"直接致电相应人员"]
[null,null,"明确介绍"]
[null,null,"添加项目"]
[null,null,"添加项目"]
[null,null,"添加项目"]
[null,null,"添加项目"]
[null,null,"添加项目"]
[null,null,"添加项目"]
[null,null,"添加项目"]
[null,null,"添加项目"]

{"sheet":"销售信息","index":4,"n_rows":13,"n_cols":3,"rows_kept":13}
[null,{"$f":"公司名称","v":" 公司名称"}]
[null,"销售致电清单"]
[null,"复选框","销售信息"]
[null,null,"对产品/服务进行明确、生动的介绍"]
[null,null,"涵盖所有基本信息"]
[null,null,"提及 Web 平台（例如网站、社交网络）"]
[null,null,"添加项目"]
[null,null,"添加项目"]
[null,null,"添加项目"]
[null,null,"添加项目"]
[null,null,"添加项目"]
[null,null,"添加项目"]
[null,null,"添加项目"]

{"sheet":"跟进","index":5,"n_rows":13,"n_cols":3,"rows_kept":13}
[null,{"$f":"公司名称","v":" 公司名称"}]
[null,"销售致电清单"]
[null,"复选框","跟进信息"]
[null,null,"客户联系信息"]
[null,null,"客户个人信息"]
[null,null,"客户偏好"]
[null,null,"是否已重新安排联系？"]
[null,null,"是否已达成销售？"]
[null,null,"添加项目"]
[null,null,"添加项目"]
[null,null,"添加项目"]
[null,null,"添加项目"]
[null,null,"添加项目"]